fUSD/lending_fUSD_20250407
["ID","MTS","AMOUNT","RATE_DAILY","PERIOD"]
[357313452,1744004505955,-778.15,0.00053424,120]
[357313453,1744004505998,-732.7,0.00053424,120]
[357313454,1744004506041,-3671.42,0.00053424,120]
[357313455,1744004506088,-784.37,0.00053698,100]
[357313456,1744004506136,-500.0,0.00053698,120]
[357313457,1744004506184,-601.79,0.00053698,120]
[357313458,1744004506226,-11980.63,0.00053698,120]
[357313459,1744004506269,-1512.25,0.00053698,120]
[357313460,1744004506312,-559.47,0.00053698,120]
[357313461,1744004506357,-906.15,0.00053698,120]
[357313462,1744004506400,-500.0,0.00053698,120]
[357313463,1744004506445,-500.0,0.00053698,120]
[357313464,1744004506489,-767.0,0.00053698,120]
[357313465,1744004506533,-500.0,0.00053698,120]
[357313466,1744004506576,-1010.75,0.00053698,120]
[357313467,1744004506619,-500.0,0.00053698,120]
[357313468,1744004506672,-500.0,0.00053698,120]
[357313469,1744004506717,-606.08,0.00053698,120]
[357313470,1744004506762,-778.15,0.00053698,120]
[357313471,1744004506807,-732.7,0.00053698,120]
[357313472,1744004506853,-3671.42,0.00053698,120]
[357313473,1744004506897,-2054.76330056,0.000539,30]
[357313474,1744004506941,-181.43381984,0.000539,120]
[357313475,1744004506983,-212.35,0.0005397,120]
[357313476,1744004507029,-784.37,0.00053972,100]
[357313477,1744004507076,-500.0,0.00053972,120]
[357313478,1744004507122,-601.79,0.00053972,120]
[357313479,1744004507171,-11980.63,0.00053972,120]
[357313480,1744004507217,-1512.25,0.00053972,120]
[357313481,1744004507264,-559.47,0.00053972,120]
[357313482,1744004507313,-906.15,0.00053972,120]
[357313483,1744004507359,-456.93149105,0.00053972,120]
[357313484,1744004507406,-233.31264285,0.00053972,120]
[357313485,1744004507452,-767.0,0.00053972,120]
[357313486,1744004507499,-500.0,0.00053972,120]
[357313487,1744004507543,-1010.75,0.00053972,120]
[357313488,1744004507587,-500.0,0.00053972,120]
[357313489,1744004507633,-500.0,0.00053972,120]
[357313490,1744004507679,-606.08,0.00053972,120]
[357313491,1744004507724,-778.15,0.00053972,120]
[357313492,1744004507768,-732.7,0.00053972,120]
[357313493,1744004507811,-151.0,0.00053972,120]
[357313494,1744004507855,-3671.42,0.00053972,120]
[357313495,1744004507899,-150.5,0.0005398,120]
[357313496,1744004507946,-150.5,0.0005399,120]
[357313497,1744004507991,-5167.01,0.00054,120]
[357313498,1744004508038,-449.35678,0.00054,96]
[357313499,1744004508084,-151.0,0.00054,120]
[357313500,1744004508134,-784.37,0.00054246,100]
[357313501,1744004508181,-500.0,0.00054246,120]
[357313502,1744004508228,-601.79,0.00054246,120]
[357313503,1744004508276,-11980.63,0.00054246,120]
[357313504,1744004508324,-1512.25,0.00054246,120]
[357313505,1744004508369,-559.47,0.00054246,120]
[357313506,1744004508417,-906.15,0.00054246,120]
[357313507,1744004508461,-767.0,0.00054246,120]
[357313508,1744004508504,-500.0,0.00054246,120]
[357313509,1744004508545,-1010.75,0.00054246,120]
[357313510,1744004508586,-500.0,0.00054246,120]
[357313511,1744004508629,-332.00714609,0.00054246,120]
[357313512,1744004508673,-606.08,0.00054246,120]
[357313513,1744004508715,-778.15,0.00054246,120]
[357313514,1744004508760,-732.7,0.00054246,120]
[357313515,1744004508802,-3671.42,0.00054246,120]
[357313516,1744004508986,-784.37,0.0005452,100]
[357313517,1744004509032,-500.0,0.0005452,120]
[357313518,1744004509079,-601.79,0.0005452,120]
[357313519,1744004509125,-11980.63,0.0005452,120]
[357313520,1744004509176,-1512.25,0.0005452,120]
[357313521,1744004509221,-559.47,0.0005452,120]
[357313522,1744004509266,-906.15,0.0005452,120]
[357313523,1744004509310,-767.0,0.0005452,120]
[357313524,1744004509355,-500.0,0.0005452,120]
[357313525,1744004509400,-1010.75,0.0005452,120]
[357313526,1744004509444,-500.0,0.0005452,120]
[357313527,1744004509488,-606.08,0.0005452,120]
[357313528,1744004509530,-778.15,0.0005452,120]
[357313529,1744004509571,-732.7,0.0005452,120]
[357313530,1744004509615,-3671.42,0.0005452,120]
[357313531,1744004509660,-2054.76330055,0.00054675,30]
[357313532,1744004509702,-500.0,0.00054794,120]
[357313533,1744004509745,-784.37,0.00054794,100]
[357313534,1744004509792,-500.0,0.00054794,120]
[357313535,1744004509835,-601.79,0.00054794,120]
[357313536,1744004509878,-11980.63,0.00054794,120]
[357313537,1744004509921,-1512.25,0.00054794,120]
[357313538,1744004509964,-559.47,0.00054794,120]
[357313539,1744004510008,-906.15,0.00054794,120]
[357313540,1744004510053,-767.0,0.00054794,120]
[357313541,1744004510096,-615.67152746,0.00054794,120]
[357313542,1744004510138,-1010.75,0.00054794,120]
[357313543,1744004510181,-500.0,0.00054794,120]
[357313544,1744004510225,-606.08,0.00054794,120]
[357313545,1744004510269,-778.15,0.00054794,120]
[357313546,1744004510314,-732.7,0.00054794,120]
[357313547,1744004510363,-3671.42,0.00054794,120]
[357313548,1744004510407,-265.0,0.00054794,120]
[357313549,1744004510450,-700.0,0.00054795,30]
[357313550,1744004510493,-1000.0,0.00054795,40]
[357313551,1744004510536,-3174.16,0.00054795,60]
[357313552,1744004510577,-151.0,0.00054795,120]
[357313553,1744004510617,-151.0,0.00054795,120]
[357313554,1744004510660,-151.0,0.00054795,120]
[357313555,1744004510703,-151.0,0.00054795,120]
[357313556,1744004510743,-151.0,0.00054795,120]
[357313557,1744004510790,-500.0,0.00054795,120]
[357313558,1744004510830,-500.0,0.00054795,120]
[357313559,1744004510870,-618.75705199,0.00054795,120]
[357313560,1744004510911,-890.14651304,0.00054796,119]
[357313561,1744004510951,-1097.79661459,0.00054797,119]
[357313562,1744004510992,-1919.9401601,0.00054798,119]
[357313563,1744004511033,-3653.65738143,0.000548,119]
[357313564,1744004511075,-9039.39,0.000548,60]
[357313565,1744004511118,-200.0,0.000548,120]
[357313566,1744004511161,-10275.1467601,0.000548,119]
[357313567,1744004511202,-184.09908444,0.000548,120]
[357313568,1744004511245,-1000.0,0.00054899,120]
[357313569,1744004511289,-500.0,0.00054911,120]
[357313570,1744004511337,-5000.0,0.00054973,120]
[357313571,1744004511385,-1000.0,0.00054999,120]
[357313572,1744004511431,-318.0,0.00055,120]
[357313573,1744004511477,-150.0,0.00055,120]
[357313574,1744004511521,-7370.97,0.00055,30]
[357313575,1744004511570,-1000000.0,0.00055,120]
[357313576,1744004511620,-1000000.0,0.00055,120]
[357313577,1744004511667,-2052.27,0.00055,120]
[357313578,1744004511713,-500.0,0.00055,120]
[357313579,1744004511759,-3783.0,0.00055,120]
[357313580,1744004511801,-250.0,0.00055,56]
[357313581,1744004511845,-680.0,0.00055,120]
[357313582,1744004511891,-1066.0,0.00055,120]
[357313583,1744004511935,-284642.73191574,0.00055,120]
[357313584,1744004526952,-500.0,0.00041096,31]
[357313585,1744004526996,-500.0,0.00041096,31]
[357313586,1744004527042,-500.0,0.00041096,31]
[357313587,1744004527088,-280.96353388,0.00041096,31]
[357313588,1744004527134,-500.0,0.00041096,31]
[357313589,1744004527187,-300.0,0.00048767,120]
[357313590,1744004527235,-500.0,0.00049315,120]
[357313591,1744004527279,-500.0,0.00049315,120]
[357313592,1744004527323,-500.0,0.00049315,120]
[357313593,1744004527374,-1016.85,0.00049315,120]
[357313594,1744004527427,-5779.96,0.00049315,120]
[357313595,1744004527579,-500.0,0.00049315,120]
[357313596,1744004527627,-500.0,0.00049315,120]
[357313597,1744004527677,-500.0,0.00049315,120]
[357313598,1744004527724,-500.0,0.00049315,120]
[357313599,1744004527770,-602.42,0.00049315,120]
[357313600,1744004527814,-500.0,0.00049315,120]
[357313601,1744004527860,-500.0,0.00049315,120]
[357313602,1744004527906,-500.0,0.00049315,120]
[357313603,1744004527951,-500.0,0.00049315,120]
[357313604,1744004527996,-500.0,0.00049315,120]
[357313605,1744004528044,-500.0,0.00049315,120]
[357313606,1744004528087,-500.0,0.00049315,120]
[357313607,1744004528131,-500.0,0.00049315,120]
[357313608,1744004528180,-534.81535252,0.00049315,120]
[357313609,1744004528226,-500.0,0.00049315,120]
[357313610,1744004528279,-500.0,0.00049589,120]
[357313611,1744004528327,-500.0,0.00049589,120]
[357313612,1744004528371,-500.0,0.00049589,120]
[357313613,1744004528417,-1016.85,0.00049589,120]
[357313614,1744004528461,-5779.96,0.00049589,120]
[357313615,1744004528507,-613.28874767,0.00049589,120]
[357313616,1744004528551,-500.0,0.00049589,120]
[357313617,1744004528597,-500.0,0.00049589,120]
[357313618,1744004528650,-500.0,0.00049589,120]
[357313619,1744004528696,-602.42,0.00049589,120]
[357313620,1744004528742,-500.0,0.00049589,120]
[357313621,1744004528788,-500.0,0.00049589,120]
[357313622,1744004528834,-500.0,0.00049589,120]
[357313623,1744004528881,-500.0,0.00049589,120]
[357313624,1744004528930,-500.0,0.00049589,120]
[357313625,1744004528975,-500.0,0.00049589,120]
[357313626,1744004529023,-500.0,0.00049589,120]
[357313627,1744004529067,-500.0,0.00049589,120]
[357313628,1744004529121,-500.0,0.00049863,120]
[357313629,1744004529166,-500.0,0.00049863,120]
[357313630,1744004529212,-500.0,0.00049863,120]
[357313631,1744004529257,-1016.85,0.00049863,120]
[357313632,1744004529300,-5779.96,0.00049863,120]
[357313633,1744004529344,-500.0,0.00049863,120]
[357313634,1744004529389,-500.0,0.00049863,120]
[357313635,1744004529440,-500.0,0.00049863,120]
[357313636,1744004529484,-602.42,0.00049863,120]
[357313637,1744004529530,-550.5794,0.00049863,120]
[357313638,1744004529574,-503.69162039,0.00049863,120]
[357313639,1744004529621,-500.0,0.00049863,120]
[357313640,1744004529665,-500.0,0.00049863,120]
[357313641,1744004529711,-579.9985055,0.00049863,120]
[357313642,1744004529760,-572.90341501,0.00049863,120]
[357313643,1744004529816,-500.0,0.00049863,120]
[357313644,1744004529861,-500.0,0.00049863,120]
[357313645,1744004529907,-151.0,0.0004999,120]
[357313646,1744004529954,-500.0,0.00050136,120]
[357313647,1744004529998,-500.0,0.00050136,120]
[357313648,1744004530043,-500.0,0.00050136,120]
[357313649,1744004530087,-1016.85,0.00050136,120]
[357313650,1744004530131,-5779.96,0.00050136,120]
[357313651,1744004530182,-541.03659365,0.00050136,120]
[357313652,1744004530228,-500.0,0.00050136,120]
[357313653,1744004530273,-500.0,0.00050136,120]
[357313654,1744004530318,-602.42,0.00050136,120]
[357313655,1744004530365,-500.0,0.00050136,120]
[357313656,1744004530411,-419.79556662,0.00050136,120]
[357313657,1744004530456,-290.13250477,0.00050136,120]
[357313658,1744004530501,-500.0,0.00050136,120]
[357313659,1744004530547,-500.0,0.0005041,120]
[357313660,1744004530593,-500.0,0.0005041,120]
[357313661,1744004530639,-500.0,0.0005041,120]
[357313662,1744004530692,-500.0,0.0005041,120]
[357313663,1744004530738,-1016.85,0.0005041,120]
[357313664,1744004530784,-5779.96,0.0005041,120]
[357313665,1744004530832,-500.0,0.0005041,120]
[357313666,1744004530888,-339.72,0.0005041,120]
[357313667,1744004530937,-602.42,0.0005041,120]
[357313668,1744004530982,-500.0,0.0005041,120]
[357313669,1744004531027,-500.0,0.0005041,120]
[357313670,1744004531073,-208.34325688,0.00050684,120]
[357313671,1744004531120,-500.0,0.00050684,120]
[357313672,1744004531167,-500.0,0.00050684,120]
[357313673,1744004531214,-500.0,0.00050684,120]
[357313674,1744004531259,-1016.85,0.00050684,120]
[357313675,1744004531303,-5779.96,0.00050684,120]
[357313676,1744004531346,-500.0,0.00050684,120]
[357313677,1744004531390,-602.42,0.00050684,120]
[357313678,1744004531444,-284.04186309,0.00050684,120]
[357313679,1744004531489,-500.0,0.00050684,120]
[357313680,1744004531534,-4908.0,0.000508,93]
[357313681,1744004531578,-500.0,0.00050958,120]
[357313682,1744004531623,-500.0,0.00050958,120]
[357313683,1744004531668,-500.0,0.00050958,120]
[357313684,1744004531714,-1016.85,0.00050958,120]
[357313685,1744004531761,-5779.96,0.00050958,120]
[357313686,1744004531805,-500.0,0.00050958,120]
[357313687,1744004531847,-602.42,0.00050958,120]
[357313688,1744004531889,-500.0,0.00050958,120]
[357313689,1744004531933,-500.0,0.00051232,120]
[357313690,1744004531978,-500.0,0.00051232,120]
[357313691,1744004532021,-500.0,0.00051232,120]
[357313692,1744004532199,-1016.85,0.00051232,120]
[357313693,1744004532246,-5779.96,0.00051232,120]
[357313694,1744004532289,-500.0,0.00051232,120]
[357313695,1744004532335,-602.42,0.00051232,120]
[357313696,1744004532381,-204.564832,0.00051506,120]
[357313697,1744004532428,-500.0,0.00051506,120]
[357313698,1744004532473,-545.6471939,0.00051506,120]
[357313699,1744004532517,-1016.85,0.00051506,120]
[357313700,1744004532560,-5779.96,0.00051506,120]
[357313701,1744004532604,-500.0,0.00051506,120]
[357313702,1744004532651,-602.42,0.00051506,120]
[357313703,1744004532695,-5557.0,0.000517,93]
[357313704,1744004532741,-500.0,0.0005178,120]
[357313705,1744004532785,-1016.85,0.0005178,120]
[357313706,1744004532826,-5779.96,0.0005178,120]
[357313707,1744004532871,-151.0,0.0005178,120]
[357313708,1744004532916,-500.0,0.0005178,120]
[357313709,1744004532960,-602.42,0.0005178,120]
[357313710,1744004533005,-151.0,0.00052,120]
[357313711,1744004533049,-500.0,0.00052054,120]
[357313712,1744004533094,-1016.85,0.00052054,120]
[357313713,1744004533139,-5779.96,0.00052054,120]
[357313714,1744004533189,-500.0,0.00052054,120]
[357313715,1744004533232,-602.42,0.00052054,120]
[357313716,1744004533278,-509.65,0.00052328,120]
[357313717,1744004533324,-500.0,0.00052328,120]
[357313718,1744004533369,-1016.85,0.00052328,120]
[357313719,1744004533412,-5779.96,0.00052328,120]
[357313720,1744004533456,-500.0,0.00052328,120]
[357313721,1744004533500,-602.42,0.00052328,120]
[357313722,1744004533544,-509.65,0.00052602,120]
[357313723,1744004533586,-298.29347527,0.00052602,120]
[357313724,1744004533630,-1016.85,0.00052602,120]
[357313725,1744004533674,-5779.96,0.00052602,120]
[357313726,1744004533722,-156.515478,0.00052602,120]
[357313727,1744004533766,-500.0,0.00052602,120]
[357313728,1744004533809,-602.42,0.00052602,120]
[357313729,1744004533851,-509.65,0.00052876,120]
[357313730,1744004533892,-1016.85,0.00052876,120]
[357313731,1744004533936,-5779.96,0.00052876,120]
[357313732,1744004533977,-318.71421544,0.00052876,120]
[357313733,1744004534017,-602.42,0.00052876,120]
[357313734,1744004534057,-509.65,0.0005315,120]
[357313735,1744004534099,-1016.85,0.0005315,120]
[357313736,1744004534141,-5779.96,0.0005315,120]
[357313737,1744004534188,-602.42,0.0005315,120]
[357313738,1744004534232,-509.65,0.00053424,120]
[357313739,1744004534276,-1016.85,0.00053424,120]
[357313740,1744004534318,-5779.96,0.00053424,120]
[357313741,1744004534363,-602.42,0.00053424,120]
[357313742,1744004534409,-509.65,0.00053698,120]
[357313743,1744004534455,-1016.85,0.00053698,120]
[357313744,1744004534500,-5779.96,0.00053698,120]
[357313745,1744004534544,-602.42,0.00053698,120]
[357313746,1744004534590,-509.65,0.00053972,120]
[357313747,1744004534635,-1016.85,0.00053972,120]
[357313748,1744004534682,-5779.96,0.00053972,120]
[357313749,1744004534726,-602.42,0.00053972,120]
[357313750,1744004534771,-208.491661,0.00054,120]
[357313751,1744004534813,-151.0,0.00054,120]
[357313752,1744004534856,-509.65,0.00054246,120]
[357313753,1744004534906,-1016.85,0.00054246,120]
[357313754,1744004534955,-5779.96,0.00054246,120]
[357313755,1744004535007,-602.42,0.00054246,120]
[357313756,1744004535056,-509.65,0.0005452,120]
[357313757,1744004535107,-1016.85,0.0005452,120]
[357313758,1744004535158,-5779.96,0.0005452,120]
[357313759,1744004535206,-602.42,0.0005452,120]
[357313760,1744004535254,-509.65,0.00054794,120]
[357313761,1744004535303,-1016.85,0.00054794,120]
[357313762,1744004535352,-5779.96,0.00054794,120]
[357313763,1744004535401,-602.42,0.00054794,120]
[357313764,1744004535445,-179.86189466,0.00054795,120]
[357313765,1744004535490,-151.0,0.00054795,120]
[357313766,1744004535535,-151.0,0.00054795,120]
[357313767,1744004535586,-714357.26808426,0.00055,120]
[357313768,1744004535638,-151.0,0.00055,120]
[357313769,1744004535692,-233.894896,0.00055,120]
[357313770,1744004535743,-152.937982,0.00055,120]
[357313771,1744004535794,-151.0,0.00055,120]
[357313772,1744004535843,-151.0,0.00055,120]
[357313773,1744004536106,-151.0,0.00055,120]
[357313774,1744004536153,-151.0,0.00055,120]
[357313775,1744004536198,-151.0,0.00055,120]
[357313776,1744004536243,-167.209644,0.00055,120]
[357313777,1744004536286,-243.30319005,0.00055068,30]
[357313778,1744004536330,-1607.14,0.00055068,120]
[357313779,1744004536375,-797.82,0.00055068,120]
[357313780,1744004536420,-698.98,0.00055068,120]
[357313781,1744004536465,-481.32447228,0.00055068,120]
[357313782,1744004536510,-500.0,0.00055068,120]
[357313783,1744004536555,-761.56,0.00055068,120]
[357313784,1744004536600,-284.42411338,0.00055068,120]
[357313785,1744004536643,-869.5,0.00055068,120]
[357313786,1744004536689,-319.18,0.00055068,120]
[357313787,1744004536734,-543.86,0.00055068,120]
[357313788,1744004536780,-801.0,0.00055068,120]
[357313789,1744004536824,-695.39,0.00055068,120]
[357313790,1744004536868,-516.92,0.00055068,120]
[357313791,1744004536912,-500.0,0.00055068,120]
[357313792,1744004536959,-4838.43,0.00055068,120]
[357313793,1744004537004,-500.0,0.00055068,120]
[357313794,1744004537048,-1085.1,0.00055068,120]
[357313795,1744004537092,-576.76,0.00055068,120]
[357313796,1744004537136,-598.2,0.00055068,120]
[357313797,1744004537182,-1294.2,0.00055068,120]
[357313798,1744004537227,-500.0,0.00055068,120]
[357313799,1744004537272,-3054.48,0.00055068,30]
[357313800,1744004537317,-539.1,0.00055068,120]
[357313801,1744004537361,-715.45,0.00055068,120]
[357313802,1744004537407,-2579.14,0.00055068,120]
[357313803,1744004537453,-810.85,0.00055068,120]
[357313804,1744004537499,-816.18,0.00055068,120]
[357313805,1744004537542,-581.73,0.00055068,120]
[357313806,1744004537587,-511.49456719,0.00055068,120]
[357313807,1744004537631,-530.24463457,0.00055068,120]
[357313808,1744004537675,-500.0,0.00055068,120]
[357313809,1744004537716,-992.47,0.00055068,120]
[357313810,1744004537761,-711.71,0.00055068,120]
[357313811,1744004537808,-671.8,0.00055068,120]
[357313812,1744004537855,-318.43110471,0.00055068,120]
[357313813,1744004537903,-1772.83,0.00055068,120]
[357313814,1744004537948,-429.4189891,0.00055068,120]
[357313815,1744004537992,-1054.58,0.00055068,120]
[357313816,1744004538035,-706.62,0.00055068,120]
[357313817,1744004538078,-1150.94,0.00055068,120]
[357313818,1744004538121,-784.37,0.00055068,100]
[357313819,1744004538166,-500.0,0.00055068,120]
[357313820,1744004538209,-601.79,0.00055068,120]
[357313821,1744004538256,-11980.63,0.00055068,120]
[357313822,1744004538303,-1512.25,0.00055068,120]
[357313823,1744004538349,-559.47,0.00055068,120]
[357313824,1744004538396,-906.15,0.00055068,120]
[357313825,1744004538445,-767.0,0.00055068,120]
[357313826,1744004538490,-1010.75,0.00055068,120]
[357313827,1744004538533,-500.0,0.00055068,120]
[357313828,1744004538578,-606.08,0.00055068,120]
[357313829,1744004538621,-778.15,0.00055068,120]
[357313830,1744004538663,-732.7,0.00055068,120]
[357313831,1744004538708,-3671.42,0.00055068,120]
[357313832,1744004538752,-509.65,0.00055068,120]
[357313833,1744004538798,-1016.85,0.00055068,120]
[357313834,1744004538840,-5779.96,0.00055068,120]
[357313835,1744004538882,-602.42,0.00055068,120]
[357313836,1744004538925,-300.0,0.00055225,120]
[357313837,1744004538969,-581.79080885,0.00055342,30]
[357313838,1744004539019,-1607.14,0.00055342,120]
[357313839,1744004539069,-797.82,0.00055342,120]
[357313840,1744004539117,-698.98,0.00055342,120]
[357313841,1744004539166,-305.64059903,0.00055342,120]
[357313842,1744004539217,-761.56,0.00055342,120]
[357313843,1744004539265,-869.5,0.00055342,120]
[357313844,1744004539316,-319.18,0.00055342,120]
[357313845,1744004539367,-543.86,0.00055342,120]
[357313846,1744004539414,-801.0,0.00055342,120]
[357313847,1744004539461,-695.39,0.00055342,120]
[357313848,1744004539507,-516.92,0.00055342,120]
[357313849,1744004539550,-617.87683021,0.00055342,120]
[357313850,1744004539594,-4838.43,0.00055342,120]
[357313851,1744004539638,-493.56517129,0.00055342,120]
[357313852,1744004539683,-1085.1,0.00055342,120]
[357313853,1744004539728,-576.76,0.00055342,120]
[357313854,1744004539773,-598.2,0.00055342,120]
[357313855,1744004539818,-1294.2,0.00055342,120]
[357313856,1744004539862,-634.53093404,0.00055342,120]
[357313857,1744004539905,-3054.48,0.00055342,30]
[357313858,1744004539948,-539.1,0.00055342,120]
[357313859,1744004539994,-715.45,0.00055342,120]
[357313860,1744004540038,-2579.14,0.00055342,120]
[357313861,1744004540084,-810.85,0.00055342,120]
[357313862,1744004540131,-816.18,0.00055342,120]
[357313863,1744004540177,-581.73,0.00055342,120]
[357313864,1744004540222,-500.0,0.00055342,120]
[357313865,1744004540266,-992.47,0.00055342,120]
[357313866,1744004540309,-711.71,0.00055342,120]
[357313867,1744004540355,-671.8,0.00055342,120]
[357313868,1744004540407,-1772.83,0.00055342,120]
[357313869,1744004540453,-1054.58,0.00055342,120]
[357313870,1744004540498,-706.62,0.00055342,120]
[357313871,1744004540544,-1150.94,0.00055342,120]
[357313872,1744004540590,-784.37,0.00055342,100]
[357313873,1744004540634,-283.61430101,0.00055342,120]
[357313874,1744004540682,-601.79,0.00055342,120]
[357313875,1744004540733,-11980.63,0.00055342,120]
[357313876,1744004540791,-1512.25,0.00055342,120]
[357313877,1744004540842,-559.47,0.00055342,120]
[357313878,1744004540894,-906.15,0.00055342,120]
[357313879,1744004540956,-767.0,0.00055342,120]
[357313880,1744004541011,-1010.75,0.00055342,120]
[357313881,1744004541064,-498.13943398,0.00055342,120]
[357313882,1744004541115,-606.08,0.00055342,120]
[357313883,1744004541163,-778.15,0.00055342,120]
[357313884,1744004541212,-732.7,0.00055342,120]
[357313885,1744004541260,-3671.42,0.00055342,120]
[357313886,1744004541308,-509.65,0.00055342,120]
[357313887,1744004541356,-1016.85,0.00055342,120]
[357313888,1744004541409,-5779.96,0.00055342,120]
[357313889,1744004541458,-602.42,0.00055342,120]
[357313890,1744004541509,-500.0,0.00055459,120]
[357313891,1744004541557,-1998.28215222,0.000555,61]
[357313892,1744004541605,-173927.142958,0.000555,61]
[357313893,1744004541654,-1024.42567955,0.000555,120]
[357313894,1744004541704,-1747973.19034403,0.000555,120]
[357313895,1744004549541,-500.0,0.00049315,120]
[357313896,1744004549581,-500.0,0.00049315,120]
[357313897,1744004549621,-500.0,0.00049315,120]
[357313898,1744004549662,-500.0,0.00049315,120]
[357313899,1744004549700,-158.90240104,0.00049315,120]
[357313900,1744004549737,-540.74,0.00049315,120]
[357313901,1744004549774,-500.0,0.00049315,120]
[357313902,1744004549809,-576.97735557,0.00049315,120]
[357313903,1744004550273,-500.0,0.00049315,120]
[357313904,1744004550338,-500.0,0.00049315,120]
[357313905,1744004550384,-500.0,0.00049315,120]
[357313906,1744004550431,-500.0,0.00049315,120]
[357313907,1744004550482,-500.0,0.00049589,120]
[357313908,1744004550524,-500.0,0.00049589,120]
[357313909,1744004550568,-492.55,0.00049589,120]
[357313910,1744004550609,-500.0,0.00049589,120]
[357313911,1744004550651,-500.0,0.00049589,120]
[357313912,1744004550694,-540.74,0.00049589,120]
[357313913,1744004550735,-500.0,0.00049589,120]
[357313914,1744004550778,-500.0,0.00049589,120]
[357313915,1744004550817,-500.0,0.00049589,120]
[357313916,1744004550855,-554.71229915,0.00049589,120]
[357313917,1744004550892,-500.0,0.00049863,120]
[357313918,1744004550928,-500.0,0.00049863,120]
[357313919,1744004550967,-500.0,0.00049863,120]
[357313920,1744004551002,-500.0,0.00049863,120]
[357313921,1744004551036,-540.74,0.00049863,120]
[357313922,1744004551069,-500.0,0.00049863,120]
[357313923,1744004551103,-500.0,0.00049863,120]
[357313924,1744004551138,-500.0,0.00049863,120]
[357313925,1744004551176,-500.0,0.00050136,120]
[357313926,1744004551216,-570.00283947,0.00050136,120]
[357313927,1744004551255,-500.0,0.00050136,120]
[357313928,1744004551293,-500.0,0.00050136,120]
[357313929,1744004551331,-540.74,0.00050136,120]
[357313930,1744004551368,-500.0,0.00050136,120]
[357313931,1744004551406,-272.83786431,0.00050136,120]
[357313932,1744004551446,-500.0,0.00050136,120]
[357313933,1744004551485,-500.0,0.0005041,120]
[357313934,1744004551520,-500.0,0.0005041,120]
[357313935,1744004551556,-292.17778177,0.0005041,120]
[357313936,1744004551596,-540.74,0.0005041,120]
[357313937,1744004551632,-500.0,0.0005041,120]
[357313938,1744004551673,-500.0,0.0005041,120]
[357313939,1744004551712,-500.0,0.00050684,120]
[357313940,1744004551748,-258.37088942,0.00050684,120]
[357313941,1744004551788,-540.74,0.00050684,120]
[357313942,1744004551825,-500.0,0.00050684,120]
[357313943,1744004551870,-500.0,0.00050684,120]
[357313944,1744004551909,-573.95515726,0.00050958,120]
[357313945,1744004551951,-540.74,0.00050958,120]
[357313946,1744004551991,-500.0,0.00050958,120]
[357313947,1744004552030,-347.45205167,0.00050958,120]
[357313948,1744004552069,-500.0,0.00051232,120]
[357313949,1744004552109,-540.74,0.00051232,120]
[357313950,1744004552150,-500.0,0.00051232,120]
[357313951,1744004552194,-500.0,0.00051506,120]